bitfinex-derivatives/quotes_BTCF0:USTF0_20251228
["timestamp","ask_amount","ask_price","bid_price","bid_amount"]
[1766900133669,0.02438406,87709.0,87692.0,0.01158241]
[1766900133873,0.1084092,87710.0,87692.0,0.01158241]
[1766900134174,0.02438406,87709.0,87692.0,0.01158241]
[1766900134364,0.02438406,87708.0,87692.0,0.01158241]
[1766900134664,0.1084092,87710.0,87692.0,0.01158241]
[1766900134866,0.02438626,87709.0,87692.0,0.01158241]
[1766900135172,0.02438626,87708.0,87692.0,0.01158241]
[1766900135374,0.1084092,87710.0,87694.0,0.0114111]
[1766900135673,0.02438861,87709.0,87694.0,0.0114111]
[1766900135975,0.02438861,87708.0,87694.0,0.0114111]
[1766900136271,0.22297723,87710.0,87694.0,0.0114111]
[1766900136463,0.02439046,87709.0,87694.0,0.0114111]
[1766900136664,0.02439046,87708.0,87694.0,0.0114111]
[1766900136861,0.22297723,87710.0,87694.0,0.0114111]
[1766900137066,0.02439046,87709.0,87694.0,0.0114111]
[1766900137266,0.02439046,87708.0,87694.0,0.0114111]
[1766900137477,0.22297723,87710.0,87694.0,0.0114111]
[1766900137662,0.02439228,87709.0,87694.0,0.0114111]
[1766900137868,0.02439228,87708.0,87694.0,0.0114111]
[1766900138067,0.22297723,87710.0,87694.0,0.0114111]
[1766900138268,0.02439427,87709.0,87694.0,0.0114111]
[1766900138469,0.02439427,87708.0,87694.0,0.0114111]
[1766900138672,0.22297723,87710.0,87694.0,0.0114111]
[1766900138865,0.02439428,87709.0,87694.0,0.0114111]
[1766900139070,0.02439428,87708.0,87694.0,0.0114111]
[1766900139276,0.02439428,87707.0,87694.0,0.0114111]
[1766900139476,0.05708,87706.0,87694.0,0.0114111]
[1766900139775,0.05708,87706.0,87692.0,0.00017101]
[1766900140973,0.06162542,87722.0,87699.0,0.0114105]
[1766900141179,0.0114082,87718.0,87701.0,0.0114103]
[1766900141478,0.02439644,87717.0,87701.0,0.0114103]
[1766900141777,0.02439644,87716.0,87701.0,0.0114103]
[1766900142077,0.02439644,87715.0,87701.0,0.0114103]
[1766900142276,0.17847644,87714.0,87701.0,0.0114103]
[1766900142580,0.02439644,87713.0,87701.0,0.0114103]
[1766900142877,0.02439644,87712.0,87701.0,0.0114103]
[1766900143077,0.02439644,87711.0,87701.0,0.0114103]
[1766900143279,0.02439644,87710.0,87701.0,0.0114103]
[1766900143579,0.02439644,87709.0,87701.0,0.0114103]
[1766900143780,0.15408,87714.0,87701.0,0.0114103]
[1766900143978,0.0243964,87713.0,87701.0,0.0114103]
[1766900144178,0.0243964,87712.0,87701.0,0.0114103]
[1766900144368,0.0243964,87711.0,87701.0,0.0114103]
[1766900144670,0.0243964,87710.0,87701.0,0.0114103]
[1766900144871,0.0243964,87709.0,87701.0,0.0114103]
[1766900145071,0.15408,87714.0,87701.0,0.0114103]
[1766900145271,0.0243972,87713.0,87701.0,0.0114103]
[1766900145471,0.0243972,87712.0,87701.0,0.0114103]
[1766900145678,0.0243972,87711.0,87701.0,0.0114103]
[1766900145881,0.0243972,87710.0,87701.0,0.0114103]
[1766900146081,0.0243972,87709.0,87701.0,0.0114103]
[1766900146281,0.15408,87714.0,87701.0,0.0114103]
[1766900146578,0.02439813,87713.0,87701.0,0.0114103]
[1766900146780,0.02439813,87712.0,87701.0,0.0114103]
[1766900147079,0.02439813,87711.0,87701.0,0.0114103]
[1766900147279,0.02439813,87710.0,87697.0,0.0114108]
[1766900147481,0.02439813,87709.0,87697.0,0.0114108]
[1766900147681,0.15408,87714.0,87697.0,0.0114108]
[1766900147871,0.02439865,87713.0,87697.0,0.0114108]
[1766900148071,0.02439865,87712.0,87697.0,0.0114108]
[1766900148272,0.02439865,87711.0,87697.0,0.0114108]
[1766900148567,0.02439865,87710.0,87697.0,0.0114108]
[1766900148871,0.02439865,87709.0,87697.0,0.0114108]
[1766900149072,0.15408,87714.0,87697.0,0.0114108]
[1766900149276,0.02440152,87713.0,87697.0,0.0114108]
[1766900149477,0.02440152,87712.0,87697.0,0.0114108]
[1766900149677,0.02440152,87711.0,87697.0,0.0114108]
[1766900149872,0.02440152,87710.0,87704.0,0.0114099]
[1766900150079,0.05708,87716.0,87704.0,0.0114099]
[1766900150279,0.0244036,87715.0,87704.0,0.0114099]
[1766900150471,0.0244036,87714.0,87704.0,0.0114099]
[1766900150671,0.0244036,87713.0,87704.0,0.0114099]
[1766900150880,0.0244036,87712.0,87704.0,0.0114099]
[1766900151074,0.0244036,87711.0,87704.0,0.0114099]
[1766900151276,0.0244036,87710.0,87704.0,0.0114099]
[1766900151479,0.05708,87716.0,87704.0,0.0114099]
[1766900151677,0.02440585,87715.0,87704.0,0.0114099]
[1766900151874,0.02440585,87714.0,87704.0,0.0114099]
[1766900152075,0.02440585,87713.0,87704.0,0.0114099]
[1766900152278,0.02440585,87712.0,87704.0,0.0114099]
[1766900152478,0.02440585,87711.0,87704.0,0.0114099]
[1766900152678,0.02440585,87710.0,87704.0,0.0114099]
[1766900152883,0.05708,87716.0,87704.0,0.0114099]
[1766900153183,0.02440863,87715.0,87704.0,0.0114099]
[1766900153383,0.02440863,87714.0,87704.0,0.0114099]
[1766900153586,0.02440863,87713.0,87704.0,0.0114099]
[1766900153884,0.02440863,87712.0,87704.0,0.0114099]
[1766900154085,0.02440863,87711.0,87704.0,0.0114099]
[1766900154284,0.02440863,87710.0,87704.0,0.0114099]
[1766900154485,0.02440863,87709.0,87704.0,0.0114099]
[1766900154686,0.05708,87716.0,87704.0,0.0114099]
[1766900154887,0.02441232,87715.0,87704.0,0.0114099]
[1766900155087,0.02441232,87714.0,87704.0,0.0114099]
[1766900155285,0.02441232,87713.0,87704.0,0.0114099]
[1766900155487,0.02441232,87712.0,87704.0,0.0114099]
[1766900155686,0.05708,87716.0,87704.0,0.0114099]
[1766900155687,0.02441232,87711.0,87704.0,0.0114099]
[1766900155887,0.02441232,87710.0,87704.0,0.0114099]
[1766900156084,0.02441232,87709.0,87704.0,0.0114099]
[1766900156284,0.05708,87716.0,87704.0,0.0114099]
[1766900156486,0.02441183,87715.0,87704.0,0.0114099]
[1766900156686,0.02441183,87714.0,87704.0,0.0114099]
[1766900156988,0.02441183,87713.0,87704.0,0.0114099]
[1766900157186,0.02441183,87712.0,87704.0,0.0114099]
[1766900157386,0.02441183,87711.0,87704.0,0.0114099]
[1766900157588,0.02441183,87710.0,87704.0,0.0114099]
[1766900157784,0.02441183,87709.0,87704.0,0.0114099]
[1766900157991,0.05708,87716.0,87704.0,0.0114099]
[1766900158190,0.02441159,87715.0,87704.0,0.0114099]
[1766900158390,0.02441159,87714.0,87704.0,0.0114099]
[1766900158590,0.02441159,87713.0,87704.0,0.0114099]
[1766900158791,0.02441159,87712.0,87704.0,0.0114099]
[1766900158982,0.02441159,87711.0,87704.0,0.0114099]
[1766900159185,0.02441159,87710.0,87704.0,0.0114099]
[1766900159384,0.02441159,87709.0,87704.0,0.0114099]
[1766900159580,0.05708,87716.0,87704.0,0.0114099]
[1766900159784,0.02441119,87715.0,87704.0,0.0114099]
[1766900159987,0.02441119,87714.0,87704.0,0.0114099]
[1766900160296,0.02441119,87713.0,87704.0,0.0114099]
[1766900160488,0.02441119,87712.0,87704.0,0.0114099]
[1766900160687,0.02441119,87711.0,87704.0,0.0114099]
[1766900160884,0.02441119,87710.0,87704.0,0.0114099]
[1766900161196,0.02441119,87709.0,87704.0,0.0114099]
[1766900161396,0.05708,87716.0,87704.0,0.0114099]
[1766900161596,0.02441124,87715.0,87704.0,0.0114099]
[1766900161792,0.02441124,87714.0,87704.0,0.0114099]
[1766900161992,0.02441124,87713.0,87704.0,0.0114099]
[1766900162193,0.02441124,87712.0,87704.0,0.0114099]
[1766900162496,0.02441124,87711.0,87704.0,0.0114099]
[1766900162795,0.02441124,87710.0,87704.0,0.0114099]
[1766900162998,0.02441124,87709.0,87704.0,0.0114099]
[1766900163199,0.05708,87716.0,87704.0,0.0114099]
[1766900163392,0.0245319,87715.0,87704.0,0.0114099]
[1766900163592,0.0245319,87714.0,87704.0,0.0114099]
[1766900163794,0.0245319,87713.0,87704.0,0.0114099]
[1766900163992,0.0245319,87712.0,87704.0,0.0114099]
[1766900164197,0.0245319,87711.0,87704.0,0.0114099]
[1766900164396,0.0245319,87710.0,87704.0,0.0114099]
[1766900164597,0.0245319,87709.0,87704.0,0.0114099]
[1766900164798,0.05708,87716.0,87704.0,0.0114099]
[1766900164999,0.02453213,87715.0,87704.0,0.0114099]
[1766900165199,0.02453213,87714.0,87704.0,0.0114099]
[1766900165399,0.02453213,87713.0,87704.0,0.0114099]
[1766900165605,0.02453213,87712.0,87704.0,0.0114099]
[1766900165804,0.02453213,87711.0,87704.0,0.0114099]
[1766900165997,0.02453213,87710.0,87704.0,0.0114099]
[1766900166197,0.02453213,87709.0,87704.0,0.0114099]
[1766900166397,0.05708,87716.0,87704.0,0.0114099]
[1766900166598,0.02453278,87715.0,87704.0,0.0114099]
[1766900166896,0.02453278,87714.0,87704.0,0.0114099]
[1766900167096,0.02453278,87713.0,87704.0,0.0114099]
[1766900167296,0.02453278,87712.0,87704.0,0.0114099]
[1766900167496,0.02453278,87711.0,87704.0,0.0114099]
[1766900167698,0.02453278,87710.0,87704.0,0.0114099]
[1766900167897,0.02453278,87709.0,87704.0,0.0114099]
[1766900168098,0.05708,87716.0,87704.0,0.0114099]
[1766900168310,0.02453389,87715.0,87704.0,0.0114099]
[1766900168503,0.02453389,87714.0,87704.0,0.0114099]
[1766900168692,0.02453389,87713.0,87704.0,0.0114099]
[1766900168896,0.02453389,87712.0,87704.0,0.0114099]
[1766900169097,0.02453389,87711.0,87704.0,0.0114099]
[1766900169297,0.02453389,87710.0,87704.0,0.0114099]
[1766900169596,0.02453459,87709.0,87704.0,0.0114099]
[1766900169897,0.05708,87716.0,87704.0,0.0114099]
[1766900170092,0.02453459,87715.0,87704.0,0.0114099]
[1766900170406,0.02453459,87714.0,87704.0,0.0114099]
[1766900170606,0.02453459,87713.0,87704.0,0.0114099]
[1766900170900,0.02453459,87712.0,87704.0,0.0114099]
[1766900171100,0.02453459,87711.0,87704.0,0.0114099]
[1766900171306,0.02453459,87710.0,87704.0,0.0114099]
[1766900171605,0.02453459,87709.0,87704.0,0.0114099]
[1766900171809,0.05708,87716.0,87704.0,0.0114099]
[1766900172107,0.0245361,87715.0,87704.0,0.0114099]
[1766900172303,0.0245361,87714.0,87704.0,0.0114099]
[1766900172503,0.0245361,87713.0,87704.0,0.0114099]
[1766900172703,0.0245361,87712.0,87704.0,0.0114099]
[1766900172905,0.0245361,87711.0,87704.0,0.0114099]
[1766900173107,0.0245361,87710.0,87704.0,0.0114099]
[1766900173305,0.0245361,87709.0,87704.0,0.0114099]
[1766900173507,0.05708,87716.0,87704.0,0.0114099]
[1766900173807,0.02453651,87715.0,87704.0,0.0114099]
[1766900174007,0.02453651,87714.0,87704.0,0.0114099]
[1766900174200,0.02453651,87713.0,87704.0,0.0114099]
[1766900174402,0.02453651,87712.0,87704.0,0.0114099]
[1766900174701,0.02453651,87711.0,87704.0,0.0114099]
[1766900174901,0.02453651,87710.0,87704.0,0.0114099]
[1766900175203,0.02453651,87709.0,87704.0,0.0114099]
[1766900175507,0.05708,87716.0,87704.0,0.0114099]
[1766900175704,0.02453725,87715.0,87701.0,0.0114102]
[1766900175904,0.02453725,87714.0,87701.0,0.0114102]
[1766900176204,0.02453725,87713.0,87701.0,0.0114102]
[1766900176403,0.02453725,87712.0,87701.0,0.0114102]
[1766900176603,0.02453725,87711.0,87701.0,0.0114102]
[1766900176806,0.02453725,87710.0,87701.0,0.0114102]
[1766900177006,0.02453725,87709.0,87701.0,0.0114102]
[1766900177208,0.05708,87716.0,87701.0,0.0114102]
[1766900177401,0.0245383,87715.0,87701.0,0.0114102]
[1766900177602,0.0245383,87714.0,87701.0,0.0114102]
[1766900177802,0.0245383,87713.0,87701.0,0.0114102]
[1766900178002,0.0245383,87712.0,87701.0,0.0114102]
[1766900178204,0.0245383,87711.0,87701.0,0.0114102]
[1766900178502,0.0245383,87710.0,87701.0,0.0114102]
[1766900178710,0.0245383,87709.0,87701.0,0.0114102]
[1766900178911,0.05708,87716.0,87701.0,0.0114102]
[1766900179113,0.02453919,87715.0,87701.0,0.0114102]
[1766900179312,0.02453919,87714.0,87701.0,0.0114102]
[1766900179514,0.02453919,87713.0,87701.0,0.0114102]
[1766900179714,0.02453919,87712.0,87701.0,0.0114102]
[1766900180012,0.02453919,87711.0,87701.0,0.0114102]
[1766900180208,0.02453919,87710.0,87701.0,0.0114102]
[1766900180411,0.02453919,87709.0,87701.0,0.0114102]
[1766900180612,0.02453919,87708.0,87701.0,0.0114102]
[1766900180815,0.05708,87716.0,87701.0,0.0114102]
[1766900181015,0.02454061,87715.0,87701.0,0.0114102]
[1766900181216,0.02454061,87714.0,87701.0,0.0114102]
[1766900181419,0.02454061,87713.0,87701.0,0.0114102]
[1766900181615,0.02454061,87712.0,87701.0,0.0114102]
[1766900181814,0.02454061,87711.0,87701.0,0.0114102]
[1766900182015,0.02454061,87710.0,87701.0,0.0114102]
[1766900182210,0.02454061,87709.0,87701.0,0.0114102]
[1766900182410,0.02454061,87708.0,87701.0,0.0114102]
[1766900182621,0.05708,87716.0,87701.0,0.0114102]
[1766900182918,0.02454044,87715.0,87701.0,0.0114102]
[1766900183125,0.02454044,87714.0,87701.0,0.0114102]
[1766900183323,0.02454044,87713.0,87701.0,0.0114102]
[1766900183618,0.02454044,87712.0,87701.0,0.0114102]
[1766900183824,0.02454044,87711.0,87701.0,0.0114102]
[1766900184008,0.02454044,87710.0,87701.0,0.0114102]
[1766900184207,0.02454044,87709.0,87701.0,0.0114102]
[1766900184418,0.02454044,87708.0,87701.0,0.0114102]
[1766900184721,0.02454044,87707.0,87701.0,0.0114102]
[1766900184916,4e-08,87706.0,87701.0,0.0114102]
[1766900185122,0.05708,87716.0,87703.0,0.01141]
[1766900195230,0.05708,87716.0,87692.0,0.00017101]
[1766900195526,0.05708,87716.0,87698.0,0.0114106]
[1766900196428,0.0114085,87715.0,87698.0,0.0114106]
[1766900197020,0.02417258,87714.0,87698.0,0.0114106]
[1766900197222,0.02417258,87713.0,87698.0,0.0114106]
[1766900197419,0.02417258,87712.0,87692.0,0.00017101]
[1766900197625,0.11456803,87710.0,87692.0,0.00017101]
[1766900197933,0.05708,87716.0,87692.0,0.00017101]
[1766900198129,0.02417266,87715.0,87692.0,0.00017101]
[1766900198325,0.02417266,87714.0,87692.0,0.00017101]
[1766900198630,0.0114092,87710.0,87693.0,0.0054113]
[1766900205329,0.1084088,87713.0,87695.0,0.011411]
[1766900205530,0.0241682,87712.0,87695.0,0.011411]
[1766900205737,0.0241682,87711.0,87695.0,0.011411]
[1766900205938,0.0241682,87710.0,87695.0,0.011411]
[1766900206133,0.1084088,87713.0,87695.0,0.011411]
[1766900206334,0.02416805,87712.0,87695.0,0.011411]
[1766900206635,0.02416805,87711.0,87695.0,0.011411]
[1766900206833,0.02416805,87710.0,87695.0,0.011411]
[1766900207034,0.1084088,87713.0,87695.0,0.011411]
[1766900207234,0.011409,87711.0,87695.0,0.011411]
[1766900207437,0.02416805,87710.0,87695.0,0.011411]
[1766900207638,0.02416805,87709.0,87692.0,0.01158241]
[1766900207838,0.02416805,87708.0,87692.0,0.01158241]
[1766900208040,0.011409,87711.0,87692.0,0.01158241]
[1766900208242,0.02416784,87710.0,87692.0,0.01158241]
[1766900208434,0.02416784,87709.0,87692.0,0.01158241]
[1766900208630,0.02416784,87708.0,87692.0,0.01158241]
[1766900208836,0.05708,87712.0,87696.0,0.0114109]
[1766900209143,0.02416784,87711.0,87696.0,0.0114109]
[1766900209336,0.02416784,87710.0,87696.0,0.0114109]
[1766900209536,0.02416784,87709.0,87696.0,0.0114109]
[1766900209744,0.02416784,87708.0,87696.0,0.0114109]
[1766900209934,0.05708,87712.0,87696.0,0.0114109]
[1766900210133,0.02416777,87711.0,87696.0,0.0114109]
[1766900210333,0.02416777,87710.0,87696.0,0.0114109]
[1766900210544,0.02416777,87709.0,87696.0,0.0114109]
[1766900210742,0.02416777,87708.0,87696.0,0.0114109]
[1766900210943,0.05708,87712.0,87696.0,0.0114109]
[1766900211242,0.02416774,87711.0,87696.0,0.0114109]
[1766900211438,0.02416774,87710.0,87698.0,0.0114106]
[1766900211638,0.02416774,87709.0,87698.0,0.0114106]
[1766900211840,0.02416774,87708.0,87698.0,0.0114106]
[1766900212041,0.05708,87712.0,87698.0,0.0114106]
[1766900212242,0.02416774,87711.0,87698.0,0.0114106]
[1766900212441,0.02416774,87710.0,87698.0,0.0114106]
[1766900212646,0.02416774,87709.0,87698.0,0.0114106]
[1766900212944,0.05708,87712.0,87698.0,0.0114106]
[1766900213143,0.02416774,87711.0,87698.0,0.0114106]
[1766900213349,0.02416774,87710.0,87698.0,0.0114106]
[1766900213547,0.02416774,87709.0,87698.0,0.0114106]
[1766900213847,0.02416774,87708.0,87698.0,0.0114106]
[1766900214050,0.05708,87712.0,87698.0,0.0114106]
[1766900214243,0.02416776,87711.0,87698.0,0.0114106]
[1766900214444,0.02416776,87710.0,87698.0,0.0114106]
[1766900214649,0.02416776,87709.0,87698.0,0.0114106]
[1766900214847,0.02416776,87708.0,87698.0,0.0114106]
[1766900215045,0.05708,87712.0,87698.0,0.0114106]
[1766900215246,0.02416789,87711.0,87698.0,0.0114106]
[1766900215447,0.02416789,87710.0,87698.0,0.0114106]
[1766900215649,0.02416789,87709.0,87698.0,0.0114106]
[1766900215848,0.02416789,87708.0,87698.0,0.0114106]
[1766900216048,0.05708,87712.0,87698.0,0.0114106]
[1766900216250,0.02416799,87711.0,87698.0,0.0114106]
[1766900216450,0.02124799,87712.0,87698.0,0.0114106]
[1766900218149,0.02124799,87712.0,87700.0,0.0114104]
[1766900221860,0.02124799,87712.0,87702.0,0.0114101]
[1766900228466,0.02413806,87711.0,87702.0,0.0114101]
[1766900228768,0.02413806,87710.0,87702.0,0.0114101]
[1766900228960,0.02413806,87709.0,87702.0,0.0114101]
[1766900229160,0.02413806,87708.0,87702.0,0.0114101]
[1766900229360,0.02413806,87707.0,87702.0,0.0114101]
[1766900229562,0.02124799,87712.0,87702.0,0.0114101]
[1766900229763,0.02413806,87711.0,87702.0,0.0114101]
[1766900229963,0.02413806,87710.0,87702.0,0.0114101]
[1766900230166,0.02413806,87709.0,87702.0,0.0114101]
[1766900230463,0.02413806,87708.0,87702.0,0.0114101]
[1766900230663,0.02413806,87707.0,87702.0,0.0114101]
[1766900230866,0.02124799,87712.0,87698.0,0.0114106]
[1766900231169,0.02413806,87711.0,87698.0,0.0114106]
[1766900231375,0.02413806,87710.0,87698.0,0.0114106]
[1766900231560,0.02413806,87709.0,87698.0,0.0114106]
[1766900231760,0.02413806,87708.0,87698.0,0.0114106]
[1766900232057,0.02413806,87707.0,87698.0,0.0114106]
[1766900232258,0.02124799,87712.0,87698.0,0.0114106]
[1766900232467,0.02413809,87711.0,87698.0,0.0114106]
[1766900232666,0.02413809,87710.0,87698.0,0.0114106]
[1766900232869,0.02413809,87709.0,87698.0,0.0114106]
[1766900233069,0.02413809,87708.0,87698.0,0.0114106]
[1766900233373,0.02413809,87707.0,87703.0,0.00156519]
[1766900233561,0.02124799,87712.0,87703.0,0.00156519]
[1766900233762,0.02413813,87711.0,87703.0,0.00156519]
[1766900233962,0.02413813,87710.0,87703.0,0.00156519]
[1766900234162,0.02413813,87709.0,87703.0,0.00156519]
[1766900234472,0.02124799,87712.0,87698.0,0.0114106]
[1766900234473,0.02413813,87708.0,87706.0,0.00156519]
[1766900234669,0.02124799,87712.0,87706.0,0.00156519]
[1766900234870,0.02413818,87711.0,87706.0,0.00156519]
[1766900235072,0.02413818,87710.0,87706.0,0.00156519]
[1766900235271,0.02413818,87709.0,87706.0,0.00156519]
[1766900235572,0.02413818,87708.0,87707.0,0.00156519]
[1766900235965,0.02413818,87711.0,87707.0,0.00156519]
[1766900236372,0.02413818,87711.0,87709.0,0.00156519]
[1766900237470,0.02413818,87711.0,87710.0,0.00156519]
[1766900237672,0.02413818,87711.0,87700.0,0.0114104]
[1766900245182,0.02413818,87711.0,87697.0,0.0114108]
[1766900247484,0.02413818,87711.0,87699.0,0.0114105]
[1766900250788,0.02413818,87711.0,87701.0,0.0114102]
[1766900254988,0.02257299,87711.0,87701.0,0.0114102]
[1766900255188,0.05708,87710.0,87701.0,0.0114102]
[1766900256789,0.05708,87710.0,87697.0,0.0114108]
[1766900257991,0.0114081,87718.0,87697.0,0.0114108]
[1766900258186,0.0114084,87716.0,87697.0,0.0114108]
[1766900258992,0.0114084,87716.0,87699.0,0.0114105]
[1766900260494,0.0114084,87716.0,87701.0,0.0114103]
[1766900261593,0.15408,87717.0,87703.0,0.01141]
[1766900264486,0.1654883,87717.0,87703.0,0.01141]
[1766900266395,0.1654883,87717.0,87699.0,0.0114105]
[1766900267000,0.02405697,87716.0,87699.0,0.0114105]
[1766900267195,0.02405697,87715.0,87699.0,0.0114105]
[1766900267395,0.02405697,87714.0,87699.0,0.0114105]
[1766900267598,0.02405697,87713.0,87699.0,0.0114105]
[1766900267796,0.02405697,87712.0,87699.0,0.0114105]
[1766900267997,0.08113697,87711.0,87699.0,0.0114105]
[1766900268199,0.02405697,87710.0,87699.0,0.0114105]
[1766900270801,0.05708,87711.0,87696.0,0.0114109]
[1766900273303,0.05708,87711.0,87699.0,0.0114105]
[1766900273706,0.02405682,87710.0,87699.0,0.0114105]
[1766900273897,0.05708,87711.0,87699.0,0.0114105]
[1766900274096,0.02405682,87710.0,87699.0,0.0114105]
[1766900274302,0.05708,87711.0,87699.0,0.0114105]
[1766900274502,0.02405686,87710.0,87699.0,0.0114105]
[1766900274701,0.05708,87711.0,87699.0,0.0114105]
[1766900275006,0.02405686,87710.0,87699.0,0.0114105]
[1766900275201,0.05708,87711.0,87699.0,0.0114105]
[1766900275503,0.02405689,87710.0,87699.0,0.0114105]
[1766900275703,0.02405689,87709.0,87699.0,0.0114105]
[1766900275904,0.05708,87711.0,87699.0,0.0114105]
[1766900276094,0.02405683,87710.0,87699.0,0.0114105]
[1766900276297,0.02405683,87709.0,87699.0,0.0114105]
[1766900276492,0.05708,87711.0,87699.0,0.0114105]
[1766900276493,0.11454978,87730.0,87699.0,0.11454978]
[1766900276695,0.1781373,87721.0,87699.0,0.11454978]
[1766900276910,0.0240573,87720.0,87699.0,0.11454978]
[1766900277099,0.0240573,87719.0,87699.0,0.11454978]
[1766900277301,0.0240573,87718.0,87699.0,0.11454978]
[1766900277610,0.0240573,87717.0,87699.0,0.11454978]
[1766900277809,0.0811373,87716.0,87700.0,0.0114103]
[1766900278001,0.0240573,87715.0,87700.0,0.0114103]
[1766900278200,0.05708,87716.0,87700.0,0.0114103]
[1766900278403,0.05708,87718.0,87700.0,0.0114103]
[1766900278907,0.05708,87718.0,87709.0,0.0114091]
[1766900281111,0.0114071,87726.0,87709.0,0.0114091]
[1766900281304,0.15408,87721.0,87709.0,0.0114091]
[1766900281503,0.0114067,87729.0,87710.0,0.11454978]
[1766900281705,0.05708,87724.0,87713.0,0.0114087]
[1766900282611,0.05708,87724.0,87715.0,0.0114084]
[1766900283709,0.097,87736.0,87711.0,0.097]
[1766900284015,0.05708,87735.0,87720.0,0.11454978]
[1766900285312,0.05708,87735.0,87721.0,0.0114076]
[1766900286510,0.05708,87734.0,87723.0,0.0114074]
[1766900292115,0.05708,87734.0,87720.0,0.12595758]
[1766900293113,0.05708,87734.0,87722.0,0.0114075]
[1766900293710,0.05708,87734.0,87720.0,0.11454978]
[1766900295511,0.05708,87734.0,87721.0,0.0114077]
[1766900295814,0.05708,87734.0,87720.0,0.11454978]
[1766900296120,0.05708,87734.0,87720.0,0.12595758]
[1766900298525,0.05708,87734.0,87722.0,0.0114075]
[1766900300824,0.05708,87734.0,87720.0,0.11454978]
[1766900302021,0.05708,87734.0,87720.0,0.12595758]
[1766900313433,0.02398196,87733.0,87720.0,0.12595758]
[1766900313635,0.02398196,87732.0,87720.0,0.12595758]
[1766900313837,0.02398196,87731.0,87720.0,0.12595758]
[1766900314036,0.02398196,87730.0,87720.0,0.12595758]
[1766900314335,0.05708,87734.0,87720.0,0.12595758]
[1766900314536,0.02398859,87733.0,87720.0,0.12595758]
[1766900314735,0.02398859,87732.0,87720.0,0.12595758]
[1766900315040,0.02398859,87731.0,87720.0,0.12595758]
[1766900315339,0.02398859,87730.0,87720.0,0.12595758]
[1766900315532,0.05708,87734.0,87720.0,0.12595758]
[1766900315837,0.02398923,87733.0,87720.0,0.12595758]
[1766900316034,0.02398923,87732.0,87720.0,0.12595758]
[1766900316235,0.02398923,87731.0,87720.0,0.12595758]
[1766900316438,0.02398923,87730.0,87720.0,0.12595758]
[1766900316638,0.05708,87734.0,87720.0,0.12595758]
[1766900316841,0.02398988,87733.0,87720.0,0.12595758]
[1766900317041,0.02398988,87732.0,87720.0,0.12595758]
[1766900317243,0.02398988,87731.0,87720.0,0.12595758]
[1766900317443,0.02398988,87730.0,87720.0,0.12595758]
[1766900317643,0.05708,87734.0,87720.0,0.12595758]
[1766900317839,0.02399009,87733.0,87720.0,0.12595758]
[1766900318141,0.02399009,87732.0,87720.0,0.12595758]
[1766900318342,0.02399009,87731.0,87720.0,0.12595758]
[1766900318544,0.02399009,87730.0,87720.0,0.12595758]
[1766900318739,0.05708,87734.0,87720.0,0.12595758]
[1766900318936,0.02399074,87733.0,87720.0,0.12595758]
[1766900319131,0.02399074,87732.0,87720.0,0.12595758]
[1766900319336,0.02399074,87731.0,87720.0,0.12595758]
[1766900319546,0.02399074,87730.0,87720.0,0.12595758]
[1766900319740,0.05708,87734.0,87720.0,0.12595758]
[1766900319939,0.02399127,87733.0,87720.0,0.0114078]
[1766900320139,0.02399127,87732.0,87720.0,0.0114078]
[1766900320331,0.02399127,87731.0,87720.0,0.0114078]
[1766900320535,0.02399127,87730.0,87720.0,0.0114078]
[1766900320731,0.05708,87734.0,87720.0,0.0114078]
[1766900321031,0.02399164,87733.0,87720.0,0.0114078]
[1766900321237,0.02399164,87732.0,87720.0,0.0114078]
[1766900321538,0.02399164,87731.0,87720.0,0.0114078]
[1766900321838,0.02399164,87730.0,87720.0,0.0114078]
[1766900322048,0.05708,87734.0,87720.0,0.0114078]
[1766900322252,0.02399211,87733.0,87720.0,0.0114078]
[1766900322454,0.02399211,87732.0,87717.0,0.0684881]
[1766900322657,0.0684861,87734.0,87717.0,0.0684881]
[1766900322658,0.02399211,87731.0,87717.0,0.0684881]
[1766900322854,0.02399211,87730.0,87717.0,0.0684881]
[1766900323160,0.0684861,87734.0,87719.0,0.0114079]
[1766900323359,0.02399246,87733.0,87719.0,0.0114079]
[1766900323560,0.02399246,87732.0,87719.0,0.0114079]
[1766900323760,0.02399246,87731.0,87719.0,0.0114079]
[1766900324062,0.02399246,87730.0,87719.0,0.0114079]
[1766900324263,0.02399246,87729.0,87719.0,0.0114079]
[1766900324562,0.0684861,87734.0,87719.0,0.0114079]
[1766900324753,0.02399389,87733.0,87719.0,0.0114079]
[1766900324954,0.02399389,87732.0,87719.0,0.0114079]
[1766900325154,0.02399389,87731.0,87719.0,0.0114079]
[1766900325362,0.02399389,87730.0,87719.0,0.0114079]
[1766900325560,0.02399389,87729.0,87719.0,0.0114079]
[1766900325761,0.0684861,87734.0,87719.0,0.0114079]
[1766900325962,0.02399479,87733.0,87719.0,0.0114079]
[1766900326165,0.02399479,87732.0,87721.0,0.0114076]
[1766900326361,0.02399479,87731.0,87723.0,0.0114074]
[1766900326561,0.02399479,87730.0,87723.0,0.0114074]
[1766900326761,0.02399479,87729.0,87723.0,0.0114074]
[1766900326959,0.05708,87734.0,87723.0,0.0114074]
[1766900327263,0.02399602,87733.0,87723.0,0.0114074]
[1766900327464,0.02399602,87732.0,87723.0,0.0114074]
[1766900327666,0.02399602,87731.0,87723.0,0.0114074]
[1766900327866,0.00299602,87730.0,87723.0,0.0114074]
[1766900328057,0.05708,87735.0,87723.0,0.0114074]
[1766900341371,0.05708,87735.0,87720.0,0.0114078]
[1766900341669,0.05708,87735.0,87717.0,0.0684882]
[1766900341969,0.0114066,87730.0,87717.0,0.03008]
[1766900342168,0.0114066,87730.0,87717.0,0.02408]
[1766900343368,0.0114066,87730.0,87715.0,0.09696]
[1766900343568,0.0114074,87724.0,87702.0,0.01310729]
[1766900343771,0.05708,87723.0,87705.0,0.0114098]
[1766900344568,0.0114076,87722.0,87705.0,0.01158081]
[1766900344767,0.0114076,87722.0,87705.0,0.00017101]
[1766900345367,0.011408,87719.0,87705.0,0.00017101]
[1766900345568,0.108368,87719.0,87705.0,0.00017101]
[1766900346065,0.0114084,87716.0,87705.0,0.00017101]
[1766900346375,0.0114084,87716.0,87652.0,0.1142]
[1766900346376,0.0114094,87709.0,87690.0,0.0114117]
[1766900347170,0.0114094,87709.0,87691.0,0.00017101]
[1766900347872,0.0114097,87706.0,87691.0,0.00017101]
[1766900348066,0.05708,87705.0,87688.0,0.108372]
[1766900348270,0.05708,87705.0,87688.0,0.09696]
[1766900349163,0.05725101,87705.0,87688.0,0.09713101]
[1766900350275,0.05725101,87705.0,87688.0,0.00017101]
[1766900351070,0.0114099,87704.0,87688.0,0.00017101]
[1766900353269,0.05725101,87705.0,87688.0,0.01158291]
[1766900355474,0.06866091,87705.0,87688.0,0.00017101]
[1766900359168,0.06866091,87705.0,87689.0,0.0114118]
[1766900360778,0.05725101,87705.0,87689.0,0.0114118]
[1766900364283,0.0114099,87704.0,87689.0,0.0114118]
[1766900364783,0.0114099,87704.0,87688.0,0.00017101]
[1766900364976,0.0114099,87704.0,87688.0,1.01e-06]